bitfinex/quotes_ETHUSD_20240722
["timestamp","ask_amount","ask_price","bid_price","bid_amount"]
[1721676614326,2.86886,3485.7,3485.2,2.86923]
[1721676614572,2.86886,3485.7,3485.2,5.73844]
[1721676614767,2.86878,3485.8,3485.3,3.79218]
[1721676614940,2.86888,3485.7,3485.3,0.923]
[1721676615539,2.86878,3485.8,3485.3,0.923]
[1721676616582,2.86882,3485.8,3485.3,0.923]
[1721676617772,2.86886,3485.7,3485.3,0.923]
[1721676618567,5.73751,3485.9,3485.3,3.79216]
[1721676618757,3.0,3485.8,3485.3,3.79216]
[1721676618991,2.86887,3485.7,3485.3,0.923]
[1721676620709,5.86878,3485.8,3485.3,3.79218]
[1721676624434,6.742525,3485.8,3485.3,2.86918]
[1721676624588,6.742525,3485.8,3485.3,3.79218]
[1721676627306,2.86886,3485.7,3485.3,3.79218]
[1721676628121,3.0,3485.8,3485.5,0.923]
[1721676628347,3.0,3486.1,3485.8,2.86872]
[1721676628495,6.45820775,3486.4,3486.0,0.923]
[1721676628697,5.86833,3486.4,3486.0,0.923]
[1721676630745,2.86837,3486.3,3485.9,5.12485]
[1721676630893,3.0,3486.2,3485.9,5.12485]
[1721676631093,3.0,3486.2,3485.9,2.2562]
[1721676631310,3.0,3486.2,3485.8,0.923]
[1721676631734,2.86832,3486.4,3485.8,0.923]
[1721676631950,2.86849,3486.2,3485.7,5.18182]
[1721676632170,3.0,3486.1,3485.7,5.18182]
[1721676632675,5.86858,3486.1,3485.7,2.313]
[1721676633048,2.86866,3486.0,3485.5,7.4]
[1721676633556,3.0,3485.9,3485.5,7.4]
[1721676634173,2.86882,3485.8,3485.5,7.4]
[1721676634353,3.0,3485.9,3485.6,0.923]
[1721676634543,3.0,3486.2,3485.8,0.923]
[1721676634743,3.0,3486.2,3485.8,3.79177]
[1721676634978,3.0,3486.2,3486.0,0.923]
[1721676635186,2.86804,3486.7,3486.2,2.4478]
[1721676635543,3.0,3486.6,3486.2,3.3708]
[1721676635742,3.0,3486.6,3486.2,6.23924]
[1721676637082,2.86823,3486.5,3486.2,2.4478]
[1721676637250,3.0,3486.4,3486.2,2.4478]
[1721676639154,2.8685,3486.2,3485.8,3.4182]
[1721676639492,3.0,3486.1,3485.8,3.4182]
[1721676639648,3.0,3486.1,3486.0,0.923]
[1721676639849,7.34733156,3487.3,3486.4,2.86822]
[1721676640150,7.34733156,3487.3,3485.5,7.4]
[1721676640151,2.86765,3487.2,3487.0,0.923]
[1721676640396,2.86795,3486.8,3486.4,7.4]
[1721676640574,2.8682,3486.5,3486.4,7.4]
[1721676640895,2.86838,3486.3,3485.9,2.4622]
[1721676641117,2.86838,3486.3,3485.9,3.3852]
[1721676641244,2.86854,3486.1,3485.6,9.6539]
[1721676641449,2.86875,3485.9,3485.6,2.2539]
[1721676641672,2.86884,3485.8,3485.2,10.5769]
[1721676641881,2.86884,3485.8,3485.2,13.44612]
[1721676642192,3.0,3485.7,3485.2,13.44612]
[1721676642345,3.0,3485.7,3485.4,0.923]
[1721676642796,2.86895,3485.6,3485.2,9.6539]
[1721676642998,5.73797,3485.6,3485.2,9.6539]
[1721676643144,2.86895,3485.6,3485.2,9.6539]
[1721676643554,2.86919,3485.3,3485.2,7.4]
[1721676643804,2.86919,3485.3,3484.8,0.923]
[1721676644120,2.86919,3485.3,3484.7,2.2539]
[1721676644121,2.86928,3485.2,3484.7,2.2539]
[1721676644394,2.86961,3484.8,3484.2,2.2539]
[1721676644616,2.86961,3484.8,3483.5,8.30091437]
[1721676644617,2.86985,3484.5,3483.8,5.12427]
[1721676644889,2.86954,3484.9,3484.4,0.923]
[1721676645257,3.3923,3485.0,3484.8,0.923]
[1721676645258,3.0,3485.0,3484.8,0.923]
[1721676645450,2.86933,3485.2,3484.8,0.923]
[1721676645451,3.0,3484.9,3484.8,0.923]
[1721676645884,3.0,3485.1,3484.8,0.923]
[1721676646151,5.86937,3485.1,3484.6,0.923]
[1721676646744,3.0,3485.1,3484.6,0.923]
[1721676646946,2.86945,3485.0,3484.5,0.923]
[1721676647185,3.0,3484.9,3484.5,0.923]
[1721676647364,5.86953,3484.9,3484.5,0.923]
[1721676648505,3.0,3484.9,3484.5,0.923]
[1721676648669,5.86953,3484.9,3484.5,0.923]
[1721676648989,6.8308128,3484.9,3484.5,0.923]
[1721676649351,2.8696,3484.8,3484.5,0.923]
[1721676649589,3.0,3484.7,3484.5,0.923]
[1721676650072,2.86944,3485.0,3484.5,0.923]
[1721676650073,3.0,3484.9,3484.5,0.923]
[1721676650509,6.743415,3484.9,3484.5,0.923]
[1721676650999,2.8699,3484.5,3484.3,0.923]
[1721676651209,3.0,3484.4,3484.3,0.923]
[1721676651359,3.0,3484.4,3483.9,10.2703]
[1721676651557,5.86985,3484.5,3484.2,0.923]
[1721676652888,3.0,3484.5,3484.2,0.923]
[1721676653114,5.73948,3484.7,3484.2,0.923]
[1721676653115,3.0,3484.6,3484.2,0.923]
[1721676653298,2.86987,3484.5,3484.2,0.923]
[1721676653487,3.0,3484.4,3484.2,0.923]
[1721676654133,3.0,3484.6,3484.2,0.923]
[1721676654281,3.0,3484.6,3484.4,0.923]
[1721676656500,5.86977,3484.6,3484.4,0.923]
[1721676657279,5.86977,3484.6,3484.2,0.923]
[1721676657926,2.86985,3484.5,3484.2,0.923]
[1721676658082,3.0,3484.4,3484.2,0.923]
[1721676660281,3.0,3484.5,3484.2,0.923]
[1721676660512,3.0,3484.5,3484.2,3.79309]
[1721676660715,2.8697,3484.7,3484.2,3.79309]
[1721676660987,3.0,3484.6,3484.5,0.923]
[1721676661246,3.0,3484.8,3484.5,0.923]
[1721676661418,3.0,3485.0,3484.5,3.79283]
[1721676661740,3.0,3485.0,3484.7,0.923]
[1721676661931,5.86944,3485.0,3484.7,0.923]
[1721676662689,2.86957,3484.9,3484.7,0.923]
[1721676662894,5.8696,3484.8,3484.7,0.923]
[1721676663104,5.8696,3484.8,3484.5,0.923]
[1721676664727,5.8696,3484.8,3484.3,2.87]
[1721676664728,5.8696,3484.8,3484.3,0.923]
[1721676665742,2.86969,3484.7,3484.3,0.923]
[1721676665902,3.0,3484.6,3484.3,0.923]
[1721676666544,5.86978,3484.6,3484.3,0.923]
[1721676668841,2.8699,3484.5,3484.3,0.923]
[1721676669049,3.0,3484.4,3484.3,0.923]
[1721676669387,3.0,3484.4,3484.1,0.923]
[1721676669850,5.86994,3484.4,3484.1,0.923]
[1721676670017,3.0,3484.4,3484.1,0.923]
[1721676670216,3.0,3484.5,3484.3,0.923]
[1721676670998,5.86986,3484.5,3484.3,0.923]
[1721676671432,3.0,3484.5,3484.3,0.923]
[1721676671655,2.86978,3484.6,3484.3,0.923]
[1721676671804,3.0,3484.5,3484.4,0.379313]
[1721676672004,3.0,3484.7,3484.4,3.710113]
[1721676672240,3.0,3484.7,3484.6,0.923]
[1721676672448,5.86968,3484.7,3484.6,0.923]
[1721676672656,5.86968,3484.7,3484.4,3.3308]
[1721676672941,2.86978,3484.6,3484.4,3.3308]
[1721676673148,3.0,3484.5,3484.4,3.3308]
[1721676674203,3.0,3484.5,3484.4,0.923]
[1721676674438,3.0,3484.5,3484.2,0.923]
[1721676674765,5.86989,3484.5,3484.2,0.923]
[1721676675057,3.0,3484.5,3484.2,0.923]
[1721676675645,5.86986,3484.5,3484.2,0.923]
[1721676676017,8.73978,3484.5,3484.2,0.923]
[1721676676360,5.86986,3484.5,3484.2,0.923]
[1721676676720,8.73979,3484.5,3484.2,0.923]
[1721676676963,2.86995,3484.4,3484.2,0.923]
[1721676677650,2.87001,3484.3,3484.2,0.923]
[1721676678927,2.87026,3484.0,3483.7,2.374]
[1721676679154,2.87026,3484.0,3483.9,0.923]
[1721676679487,2.87019,3484.1,3483.9,0.923]
[1721676679819,2.87004,3484.3,3483.9,0.923]
[1721676680356,2.87004,3484.3,3484.1,0.923]
[1721676680561,2.8701,3484.2,3484.1,0.923]
[1721676681359,3.0,3484.5,3484.1,0.923]
[1721676681570,5.89609,3485.5,3483.5,7.4]
[1721676681571,5.23913,3485.3,3484.6,2.86972]
[1721676681775,2.86863,3486.0,3484.2,2.4981]
[1721676681776,2.8694,3485.1,3485.0,0.923]
[1721676682060,2.86946,3485.0,3484.8,0.923]
[1721676682566,3.0,3484.9,3484.8,0.923]
[1721676683348,3.0,3484.9,3484.3,7.4]
[1721676683349,5.86952,3484.9,3484.3,7.4]
[1721676683550,3.0,3484.8,3484.6,0.923]
[1721676684361,2.86982,3484.6,3484.3,7.4]
[1721676684579,2.87014,3484.2,3483.8,7.4]
[1721676684738,2.87015,3484.2,3483.8,8.323]
[1721676685271,5.7403,3484.2,3483.8,8.323]
[1721676685474,2.87034,3484.0,3483.8,7.4]
[1721676686238,2.87033,3484.0,3483.8,7.4]
[1721676686438,8.74068,3483.9,3483.8,7.4]
[1721676686659,8.74068,3483.9,3483.3,5.12102]
[1721676686660,2.87047,3483.8,3483.3,5.12102]
[1721676686834,2.87047,3483.8,3483.3,6.9715161]
[1721676687480,2.87056,3483.7,3483.3,4.1006961]
[1721676687644,2.87056,3483.7,3483.1,7.4]
[1721676687645,2.87056,3483.7,3483.1,10.27096]
[1721676687856,2.87056,3483.7,3483.1,2.87096]
[1721676688658,2.87064,3483.6,3483.0,6.243521]
[1721676689352,2.87064,3483.6,3483.1,2.87095]
[1721676690504,2.87069,3483.5,3483.0,2.4754]
[1721676690814,5.87076,3483.4,3483.0,2.4754]
[1721676690973,3.0,3483.4,3483.0,2.4754]
[1721676691172,2.87076,3483.4,3483.0,2.4754]
[1721676691781,2.87076,3483.4,3483.0,5.34648]
[1721676692385,3.0,3483.5,3483.0,5.34648]
[1721676692615,5.87069,3483.5,3483.0,5.34648]
[1721676692981,5.87069,3483.5,3483.0,2.87108]
[1721676694195,3.0,3483.5,3483.0,5.74211]
[1721676694397,5.87068,3483.5,3483.0,2.87105]
[1721676694998,2.87077,3483.4,3482.9,2.87116]
[1721676695490,2.87077,3483.4,3482.9,2.87112]
[1721676695817,5.87067,3483.5,3482.9,2.87111]
[1721676696118,5.87067,3483.5,3483.0,2.87107]
[1721676696321,5.87067,3483.5,3483.0,2.87103]
[1721676696617,3.0,3483.5,3483.1,2.87093]
[1721676696825,3.0,3483.9,3483.4,5.2251]
[1721676697117,5.87035,3483.9,3483.4,5.2251]
[1721676697324,5.87035,3483.9,3483.5,2.87063]
[1721676697325,3.0,3483.9,3483.5,2.87063]
[1721676697522,3.0,3483.9,3483.6,2.87055]
[1721676697680,3.0,3484.0,3483.6,2.87055]
[1721676697881,5.87026,3484.0,3483.5,2.87067]
[1721676699627,5.87026,3484.0,3483.4,5.22515]
[1721676699782,2.87038,3483.9,3483.4,5.22515]
[1721676699979,5.87043,3483.8,3483.4,5.22515]
[1721676700179,5.87043,3483.8,3483.1,7.4]
[1721676700180,2.87063,3483.6,3483.1,9.8225]
[1721676700885,5.87048,3483.8,3483.3,2.87078]
[1721676701084,8.74097,3483.8,3483.3,2.87078]
[1721676701384,5.87048,3483.8,3483.3,2.87078]
[1721676701579,3.0,3483.8,3483.3,5.74157]
[1721676701819,3.0,3483.8,3483.5,2.87061]
[1721676702045,3.0,3483.9,3483.5,2.87061]
[1721676704337,5.87035,3483.9,3483.4,2.87075]
[1721676708092,5.87034,3483.9,3483.2,2.87086]
[1721676708420,3.0,3483.9,3483.5,2.87063]
[1721676708900,3.0,3483.9,3483.3,1.490936]
[1721676709111,3.0,3483.9,3483.5,2.87062]
[1721676709938,2.3638,3484.5,3483.2,2.40211119]
[1721676710114,0.586952,3484.8,3483.9,2.8703]
[1721676710115,2.86998,3484.4,3483.9,2.8703]
[1721676711003,2.86998,3484.4,3483.8,2.3447]
[1721676711004,2.86985,3484.5,3484.0,2.87024]
[1721676711338,2.86993,3484.4,3484.0,2.87024]
[1721676711507,3.0,3484.3,3484.0,2.87024]
[1721676712039,3.0,3484.3,3484.0,2.85508778]
[1721676712252,3.0,3484.3,3484.1,2.87013]
[1721676712534,2.4605,3485.2,3484.4,2.86992]
[1721676712734,2.86952,3484.9,3484.4,2.86992]
[1721676713699,2.86922,3485.3,3484.4,2.3447]
[1721676713935,2.8688,3485.8,3484.4,2.3447]
[1721676713936,2.86885,3485.8,3485.2,2.86921]
[1721676714098,2.4605,3486.3,3485.4,2.8691]
[1721676714295,2.4605,3486.3,3485.4,2.86904]
[1721676714603,3.155454,3486.1,3485.4,2.86904]
[1721676714814,2.86861,3486.0,3485.4,2.86904]
[1721676715544,2.86878,3485.8,3485.2,5.21395]
[1721676715745,2.86886,3485.7,3485.1,2.86935]
[1721676715941,3.0,3485.6,3485.1,2.86935]
[1721676716902,2.86904,3485.5,3484.8,9.7447]
[1721676717147,2.8692,3485.3,3484.8,7.4]
[1721676717445,2.86906,3485.5,3484.8,7.4]
[1721676717640,2.86948,3485.0,3484.8,7.4]
[1721676717840,2.86948,3485.0,3484.3,2.86994]
[1721676717841,2.86948,3485.0,3484.4,2.86988]
[1721676718044,5.86953,3484.9,3484.4,2.86988]
[1721676718352,2.86966,3484.8,3484.2,7.4]
[1721676719710,2.86966,3484.8,3484.3,2.87001]
[1721676721121,2.8697,3484.7,3484.2,7.4]
[1721676721447,3.0,3484.6,3483.8,12.059]
[1721676721628,3.0,3484.6,3484.4,2.86987]
[1721676721823,3.0,3484.9,3484.6,2.86975]
[1721676722024,2.86932,3485.2,3484.6,2.8697]
[1721676722025,3.0,3485.1,3484.6,2.8697]
[1721676722230,2.86888,3485.7,3485.0,2.86944]
[1721676722448,7.36,3486.7,3485.5,2.86895]
[1721676722449,2.86847,3486.2,3485.5,2.86895]
[1721676722649,2.86849,3486.2,3485.7,2.86886]
[1721676723541,5.73636,3486.6,3485.9,2.86864]
[1721676723745,2.2871,3487.2,3486.1,2.86848]
[1721676723962,2.2871,3487.2,3486.2,2.86837]
[1721676723963,2.86796,3486.8,3486.2,2.86837]
[1721676724166,2.86793,3486.9,3486.2,2.86837]
[1721676724472,3.027,3487.5,3486.0,10.2686]
[1721676724473,2.86698,3488.0,3487.0,2.86772]
[1721676724629,2.73701786,3488.4,3487.1,2.216]
[1721676724630,2.86706,3487.9,3487.1,2.216]
[1721676724940,2.86674,3488.3,3487.1,2.216]
[1721676725146,2.86674,3488.3,3486.7,7.4]
[1721676725147,2.86641,3488.7,3487.9,2.86699]
[1721676725356,5.69,3488.9,3487.9,2.216]
[1721676725357,2.86631,3488.8,3487.9,2.216]
[1721676725554,5.69,3488.9,3487.9,2.216]
[1721676725555,2.86641,3488.7,3487.9,2.216]
[1721676725852,5.69,3488.9,3488.4,2.86662]
[1721676726026,2.86,3488.9,3488.5,2.86655]
[1721676726238,2.86,3488.9,3487.8,2.86709]
[1721676726239,2.86,3488.9,3488.2,2.86679]
[1721676727265,2.86,3488.9,3488.1,2.86688]
[1721676727471,2.86642,3488.7,3487.7,2.86715]
[1721676727625,2.86642,3488.7,3487.8,2.8671]
[1721676727937,2.86648,3488.6,3487.8,2.86705]
[1721676728125,2.86657,3488.5,3487.8,2.86705]
[1721676728525,0.55,3488.8,3487.6,2.86729]
[1721676728730,2.86678,3488.3,3487.3,2.86752]
[1721676728944,3.0,3488.2,3487.7,2.86721]
[1721676729386,3.0,3488.4,3487.4,2.86741]
[1721676729559,2.86629,3488.9,3488.2,2.8668]
[1721676729776,5.86607,3489.1,3488.0,2.86697]
[1721676729988,3.735767,3489.0,3488.3,2.8667]
[1721676730185,2.86631,3488.8,3487.3,2.947]
[1721676730360,0.869607,3489.0,3487.3,2.947]
[1721676730361,2.86669,3488.4,3487.3,2.947]
[1721676730674,2.86669,3488.4,3487.8,2.86713]
[1721676731487,2.86669,3488.4,3487.3,2.947]
[1721676731488,5.86677,3488.3,3487.6,2.86727]
[1721676731647,5.86677,3488.3,3487.7,2.86719]
[1721676731849,3.0,3488.3,3487.6,2.86727]
[1721676732048,3.0,3488.4,3488.0,2.86696]
[1721676732251,5.86648,3488.6,3488.0,2.86696]
[1721676732455,6.739753,3488.6,3487.8,2.86707]
[1721676732653,3.0,3488.6,3487.3,2.947]
[1721676732905,2.86631,3488.8,3488.1,2.86684]
[1721676733058,3.0,3488.7,3488.1,2.86684]
[1721676733780,3.0,3488.7,3487.7,7.4]
[1721676733991,0.869607,3489.0,3487.7,7.4]
[1721676733992,4.56651,3488.6,3487.7,7.4]
[1721676734193,2.86661,3488.5,3487.8,2.86713]
[1721676734352,3.0,3488.4,3487.8,2.86713]
[1721676734553,5.86665,3488.4,3487.8,2.86713]
[1721676735652,3.0,3488.4,3487.8,2.86713]
[1721676735855,1.0899607,3488.9,3488.1,2.86687]
[1721676735856,2.86636,3488.8,3488.1,2.86687]
[1721676736179,3.0,3488.7,3488.2,2.86678]
[1721676736799,3.0,3488.7,3488.1,2.86688]
[1721676737373,3.0,3488.7,3488.3,2.86666]
[1721676737700,0.5399607,3488.9,3488.3,2.86666]
[1721676737896,0.64061607,3488.8,3488.3,2.86666]
[1721676738206,2.86644,3488.7,3488.0,2.8669]
[1721676738359,2.86644,3488.7,3487.9,2.86699]
[1721676738360,3.0,3488.6,3487.9,2.86699]
[1721676739000,3.0,3488.6,3488.1,2.86687]
[1721676739297,3.0,3488.6,3487.9,2.86705]
[1721676739472,0.65070561,3488.5,3487.9,2.86705]
[1721676739668,3.51731561,3488.5,3487.9,2.86704]
[1721676739886,3.51731561,3488.5,3487.8,2.86708]
[1721676739887,3.0,3488.4,3487.8,2.86708]
[1721676740191,3.51726561,3488.5,3487.9,2.86699]
[1721676740391,0.65070561,3488.5,3487.9,2.86699]
[1721676741284,0.65070561,3488.5,3487.7,10.26719]
[1721676741605,0.65070561,3488.5,3488.0,2.86696]
[1721676741759,0.65070561,3488.5,3488.1,2.86688]
[1721676742811,0.65070561,3488.5,3488.1,2.86682]
[1721676743002,3.0,3488.7,3488.3,2.86672]
[1721676743172,3.0,3488.7,3488.0,2.86696]
[1721676743173,2.8664,3488.7,3488.0,2.86696]
[1721676743372,3.0,3488.6,3488.0,2.86696]
[1721676743803,2.86639,3488.7,3488.1,2.86689]
[1721676744094,3.0,3488.6,3488.1,2.86689]
[1721676744261,3.99132368,3488.6,3488.1,2.86689]
[1721676744464,2.86661,3488.5,3487.9,2.86699]
[1721676745703,2.86681,3488.2,3487.7,7.4]
[1721676745930,2.26847291,3488.2,3487.7,7.4]
[1721676746397,5.86665,3488.4,3487.7,7.4]
[1721676746398,3.0,3488.4,3488.0,2.86696]
[1721676746562,3.85784368,3488.6,3488.0,2.86696]
[1721676746762,3.0,3488.5,3488.0,2.86696]
[1721676747365,3.0,3488.5,3488.2,2.86675]
[1721676747613,3.0,3488.7,3488.4,2.86659]
[1721676747942,5.0828,3489.2,3488.5,2.86655]
[1721676748068,2.8653,3490.1,3489.0,2.211]
[1721676748412,2.8653,3490.1,3488.6,2.37652107]
[1721676748413,2.4464,3490.5,3488.7,2.945]
[1721676748414,2.8654,3490.0,3488.7,2.945]
[1721676748616,2.86556,3489.8,3488.9,2.86616]
[1721676748916,2.8658,3489.5,3489.0,0.286616]
[1721676749065,2.86528,3490.1,3489.0,0.286616]
[1721676749066,2.86552,3489.8,3489.0,0.286616]
[1721676749271,2.86552,3489.8,3489.1,2.86606]
[1721676749492,2.86557,3489.7,3489.1,2.86606]
[1721676749701,2.86557,3489.7,3489.0,3.152756]
[1721676749876,2.86552,3489.8,3489.0,0.286616]
[1721676750067,2.86566,3489.6,3488.9,2.86618]
[1721676750304,2.86566,3489.6,3488.7,2.86633]
[1721676750470,2.86576,3489.5,3488.9,2.86623]
[1721676750663,2.86552,3489.8,3488.6,5.18564]
[1721676750664,2.86561,3489.7,3489.0,2.86613]
[1721676750868,2.945,3490.1,3489.0,2.86613]
[1721676750869,2.86547,3489.9,3489.0,2.86613]
[1721676751095,2.86547,3489.9,3488.6,2.3192]
[1721676751096,2.86554,3489.8,3489.1,0.286613]
[1721676751369,2.86574,3489.5,3488.8,2.86629]
[1721676751591,2.945,3490.1,3488.6,2.3192]
[1721676751592,5.81029,3490.1,3488.6,2.3192]
[1721676751805,2.86574,3489.5,3488.7,2.86634]
[1721676751999,3.55,3490.0,3488.6,2.3192]
[1721676752000,2.86596,3489.3,3488.6,2.3192]
[1721676752214,0.55,3490.0,3488.2,0.573356]
[1721676752215,3.0,3489.8,3489.2,2.86598]
[1721676752568,3.0,3489.7,3489.2,2.86598]
[1721676752762,3.0,3489.7,3489.3,2.86589]
[1721676752973,2.4464,3490.5,3489.3,3.152459]
[1721676752974,5.31134,3490.5,3489.3,3.152459]
[1721676753271,2.86509,3490.3,3489.6,2.8656]
[1721676753498,5.299,3491.1,3489.8,2.86543]
[1721676753499,2.86493,3490.5,3489.8,2.86543]
[1721676753686,2.865,3490.4,3489.8,2.86543]
[1721676754001,2.865,3490.4,3489.6,2.86559]
[1721676754201,2.86509,3490.3,3489.6,0.6017969]
[1721676754412,2.86509,3490.3,3489.7,2.86556]
[1721676754565,2.86509,3490.3,3489.7,2.86555]
[1721676754766,2.86493,3490.5,3489.8,2.86544]
[1721676754963,2.86493,3490.5,3489.9,2.8654]
[1721676754964,3.0,3490.4,3489.9,2.8654]
[1721676755168,3.0,3490.4,3489.3,0.286589]
[1721676755169,2.86484,3490.6,3489.6,2.86558]
[1721676755417,2.86493,3490.5,3489.8,2.86544]
[1721676755909,2.86493,3490.5,3489.9,2.86539]
[1721676756406,2.86475,3490.7,3489.9,2.86539]
[1721676756727,2.86484,3490.6,3489.9,2.86539]
[1721676756868,5.384,3491.1,3489.9,2.86539]
[1721676756869,2.86473,3490.8,3490.0,0.6017488]
[1721676757075,3.0,3490.7,3490.0,0.6017488]
[1721676757292,2.86493,3490.5,3489.9,2.86541]
[1721676757502,5.86476,3490.7,3490.0,2.86532]
[1721676757838,5.86476,3490.7,3490.1,2.86524]
[1721676758000,3.0,3490.7,3490.0,2.92262038]
[1721676758188,3.0,3490.7,3490.1,3.15743204]
[1721676758382,3.0,3490.8,3490.2,2.86515]
[1721676758587,5.86469,3490.8,3490.2,2.86515]
[1721676758986,2.86475,3490.7,3490.1,0.29226204]
[1721676759184,5.86469,3490.8,3490.2,2.86515]
[1721676759185,3.0,3490.6,3490.2,2.86515]
[1721676759407,5.86469,3490.8,3490.2,2.86515]
[1721676759718,5.86469,3490.8,3490.1,0.29226204]
[1721676759923,5.86469,3490.8,3490.2,2.86515]
[1721676760095,3.0,3490.8,3490.1,0.29226204]
[1721676760293,2.86464,3490.9,3490.3,2.86502]
[1721676760495,3.0,3490.8,3490.3,2.86502]
[1721676761021,2.86478,3490.7,3490.2,0.2596962]
[1721676761226,3.0,3490.8,3490.2,2.86513]
[1721676761227,5.86469,3490.8,3490.2,2.86513]
[1721676761895,5.86469,3490.8,3490.0,5.17002]
[1721676761896,3.0,3490.8,3490.0,5.16996]
[1721676762077,2.86473,3490.8,3490.1,2.86519]
[1721676762282,3.0,3491.0,3490.5,2.86485]
[1721676762551,3.0,3491.0,3490.0,2.3047]
[1721676762552,2.86434,3491.2,3490.6,2.92208054]
[1721676762845,2.86434,3491.2,3490.5,2.8649]
[1721676762846,2.86448,3491.1,3490.5,2.8649]
[1721676762998,2.86448,3491.1,3490.5,0.572983]
[1721676763188,2.86421,3491.4,3490.5,0.572983]
[1721676763189,2.86433,3491.3,3490.6,2.92209858]
[1721676763382,2.86421,3491.4,3490.6,2.92209858]
[1721676763383,2.86434,3491.2,3490.6,2.92209858]
[1721676763703,2.86423,3491.4,3490.5,0.572983]
[1721676763912,2.86423,3491.4,3490.1,10.26517]
[1721676763913,2.86423,3491.4,3490.7,2.86474]
[1721676764229,2.945,3491.6,3490.3,2.86505]
[1721676764445,2.86416,3491.5,3490.9,2.86454]
[1721676764731,2.86365,3492.1,3491.0,2.3786]
[1721676764884,2.86348,3492.3,3491.4,2.86411]
[1721676765092,0.2873,3492.8,3491.5,2.3786]
[1721676765332,0.2873,3492.8,3491.6,0.0572695]
[1721676765621,0.2873,3492.8,3492.0,2.86368]
[1721676765622,2.8632,3492.6,3492.0,2.86368]
[1721676765827,2.8632,3492.6,3491.8,2.86379]
[1721676765984,0.1502375,3492.9,3491.8,0.810637]
[1721676765985,2.86341,3492.4,3491.8,0.810637]
[1721676766642,2.86345,3492.3,3491.8,0.810637]
[1721676766922,2.86352,3492.2,3491.5,2.3786]
[1721676767129,2.945,3492.8,3491.5,2.3786]
[1721676767130,2.86335,3492.5,3491.5,2.3786]
[1721676767331,2.86352,3492.2,3491.5,2.3786]
[1721676767491,5.72712,3492.2,3491.6,1.264271]
[1721676767686,2.86352,3492.2,3491.6,1.264271]
[1721676768337,2.86355,3492.2,3491.6,1.264271]
[1721676768690,2.8636,3492.1,3491.6,1.264271]
[1721676769221,2.86369,3492.0,3491.6,1.264271]
[1721676769415,2.86312,3492.7,3491.4,7.4]
[1721676769416,2.945,3492.3,3491.4,7.4]
[1721676769618,2.86385,3491.8,3491.4,7.4]
[1721676769817,2.945,3492.3,3491.4,7.4]
[1721676769991,2.86356,3492.2,3491.4,7.4]
[1721676770194,2.86361,3492.1,3491.5,2.86409]
[1721676770393,2.86339,3492.4,3491.4,8.14]
[1721676770394,2.86339,3492.4,3491.6,2.864]
[1721676771003,2.86361,3492.1,3491.4,8.14]
[1721676771434,2.86386,3491.8,3491.4,8.14]
[1721676771793,2.86339,3492.4,3491.4,8.14]
[1721676772143,3.0,3492.6,3491.4,8.14]
[1721676772144,2.86361,3492.1,3491.5,0.814]
[1721676772291,2.86357,3492.2,3491.5,0.814]
[1721676772498,2.86365,3492.1,3491.5,3.67808]
[1721676772889,2.86377,3491.9,3491.5,0.814]
[1721676773088,2.86397,3491.7,3491.4,7.4]
[1721676773295,2.86379,3491.9,3491.4,7.4]
[1721676773709,2.86387,3491.8,3491.4,7.4]
[1721676774097,2.86394,3491.7,3491.4,7.4]
[1721676774298,2.86379,3491.9,3491.4,7.4]
[1721676774505,2.86369,3492.0,3491.4,11.577045]
[1721676774798,2.8636,3492.2,3491.5,2.86405]
[1721676775128,2.86375,3492.0,3491.4,8.712875]
[1721676775443,5.207,3492.6,3491.4,8.712875]
[1721676775444,2.86389,3491.8,3491.4,7.4]
[1721676775611,2.86403,3491.6,3491.4,7.4]
[1721676775943,2.207,3491.6,3490.8,7.4]
[1721676776141,2.86439,3491.2,3490.8,7.4]
[1721676776367,2.86435,3491.2,3490.8,7.4]
[1721676777047,2.207,3491.6,3491.1,2.86442]
[1721676777344,2.86398,3491.7,3491.1,2.8644]
[1721676777345,2.86401,3491.7,3491.1,2.8644]
[1721676777659,2.86401,3491.7,3490.5,2.86489]
[1721676777660,2.86415,3491.5,3490.9,2.86451]
[1721676777856,5.72832,3491.5,3490.9,3.150961]
[1721676778001,2.86415,3491.5,3490.9,3.150961]
[1721676778210,8.07063,3492.1,3490.9,3.150961]
[1721676778211,2.86418,3491.4,3490.9,3.150961]
[1721676778920,2.86409,3491.6,3490.9,6.015491]
[1721676779115,8.80763,3492.1,3490.9,3.150961]
[1721676779325,2.86414,3491.5,3490.9,3.150961]
[1721676779536,2.944,3491.6,3490.4,2.3863]
[1721676779746,2.944,3491.6,3490.3,7.4]
[1721676779747,2.2551,3491.6,3490.3,7.4]
[1721676779910,2.2551,3491.6,3490.6,2.86479]
[1721676779911,2.8644,3491.2,3490.6,2.86479]
[1721676780117,5.1991,3491.6,3490.3,7.4]